Workbook

Sheet Resumo
A1: TOTAL DOS CUSTOS DIRETOS | N1: =FSUP!N33 -> 1626288.32
A2: TOTAL DO CUSTOS INDIRETOS | N2: =FSUP!N37 -> 568424.49
A3: TOTAL DA PROPOSTA | N3: =FSUP!N38 -> 2194712.81

Sheet FSUP
A3: PROPOSTA FINANCEIRA SUP. E APOIO A FISC. DE OBRA | N3: CODIGO:
N4: FSUP
A5: NOME DA CONSULTORA:
A7: PROJETO: | E7: OBJETO: | N7: EDITAL:
A8: Obras Viárias | E8: Apoio à Fiscalização
A9: SERVIÇOS PAGOS A PREÇO UNITÁRIO
A10: MOBILIZAÇÃO/DESMOBILIZAÇÃO
A11: A1 - MOBILIZAÇÃO (FSUP-IV) | N11: ='FSUP-IV Mobiliz Desmob'!H41 -> 0
A12: A2 - DESMOBILIZAÇÃO (FSUP-IV) | N12: ='FSUP-IV Mobiliz Desmob'!L41 -> 0
A13: A - TOTAL DOS CUSTOS COM MOBILIZAÇÃO E DESMOBILIZAÇÃO | N13: =N11+N12 -> 0
A14: MÃO-DE-OBRA
A15: B1 - TOTAL DE SALÁRIO DA EQUIPE COM VÍNCULO (FSUP-I) | N15: ='FSUP-I EQUIPE TÉCNICA'!L42 -> 387288
A16: B2 - TOTAL DE SALÁRIO DO AUTÔNOMO (FSUP-I) | N16: ='FSUP-I EQUIPE TÉCNICA'!M42 -> 176457.6
A17: B - TOTAL DOS CUSTOS DE SALÁRIOS DA EQUIPE | N17: =SUM(N15:O16) -> 563745.6
A18: C1 - ENCARGOS SOCIAiS DE B1 = % Variáveis DO B1 | N18: ='FSUP-VII Det. Enc. Sociais'!$G$24 -> 415004.64
A19: C2 - ENCARGOS SOCIAIS DE B2 (20% DO B2) | N19: =ROUND(N16*0.2,2) -> 35291.52
A20: C - TOTAL DOS CUSTOS COM ENCARGOS SOCIAIS | N20: =SUM(N18:O19) -> 450296.16
A21: D1 - CUSTO TOTAL DAS PASSAGENS AÉREAS E TERRESTRES (FSUP-II) | N21: ='FSUP-II VIAGENS'!H32 -> 26476.8
A22: D2 - CUSTO TOTAL DAS DIÁRIAS (FSUP-II) | N22: ='FSUP-II VIAGENS'!M32 -> 295872
A23: D - TOTAL DO CUSTO COM VIAGENS | N23: =SUM(N21:O22) -> 322348.8
A25: MANUTENÇÃO OPERACIONAL
A26: 1 - CUSTO DOS VEÍCULOS (FSUP-III, ITEM 1) | N26: ='FSUP-III Manutenção Operac'!I15 -> 215496.66
A27: 2 - CUSTO DA MANUTENÇÃO E ADMINISTRAÇÃO DO ESCRITÓRIO DE APOIO (FSUP-III, ITEM 2) | N27: ='FSUP-III Manutenção Operac'!I26 -> 23427.36
A28: 3 - EQUIPAMENTO (FSUP-III, ITEM 3) | N28: ='FSUP-III Manutenção Operac'!I34 -> 39467.4
A29: 4 - SERVIÇOS GRÁFICOS/COMPUTAÇÃO (FSUP-III, ITEM 4) | N29: ='FSUP-III Manutenção Operac'!I41 -> 660
A30: 5 - ENSAIOS (FSUP-III, ITEM 5) | N30: ='FSUP-III Manutenção Operac'!I48 -> 10846.34
A32: E - TOTAL DOS PREÇOS COM MANUTENÇÃO OPERACIONAL | N32: =SUM(N26:O31) -> 289897.76
A33: TOTAL DOS CUSTOS DIRETOS | N33: =SUM(N13+N17+N20+N23+N32) -> 1626288.32
A34: =CONCATENATE("F - CUSTOS DE ADMINISTRAÇÃO = ",'FSUP-V Det. custos Adm.'!F38,"% DO B") -> F - CUSTOS DE ADMINISTRAÇÃO = 15% DO B | N34: =ROUND(N17*'FSUP-V Det. custos Adm.'!$F$38/100,2) -> 84561.84
A35: G - REMUNERAÇÃO DA EMPRESA (LUCRO) = (10% DE A + B + C + D + E + F) | N35: =ROUND(0.1*(N13+N17+N20+N23+N32+N34),2) -> 171085.02
A36: =CONCATENATE("H - DESPESAS FISCAIS = (",'FSUP-VI Det. Desp Fiscais'!G29,"% DE (A + B + C + D + E + F + G)") -> H - DESPESAS FISCAIS = (16,62% DE (A + B + C + D + E + F + G) | N36: =ROUND('FSUP-VI Det. Desp Fiscais'!$G$29/100*(N13+N17+N20+N23+N32+N34+N35),2) -> 312777.63
A37: TOTAL DO CUSTOS INDIRETOS | N37: =SUM(N34:O36) -> 568424.49
A38: TOTAL DA PROPOSTA | N38: =N33+N37 -> 2194712.81
A39: NOME DO INFORMANTE: | J39: QUALIFICAÇÃO:
A41: ASSINATURA: | N41: DATA:
A43: OBSERVAÇÃO:

Sheet FSUP-I EQUIPE TÉCNICA
A3: SALÁRIOS DA EQUIPE TÉCNICA | L3: CODIGO:
L4: FSUP- I
A5: NOME DA CONSULTORA:
A7: PROJETO: | C7: OBJETO: | L7: EDITAL:
A8: Obras Viárias | C8: Apoio à Fiscalização
A9: EQUIPE TÉCNICA | E9: COMPOSIÇÃO DOS SALÁRIOS POR PROFISSÃO/FUNÇÃO | L9: CUSTOS
E10: SALÁRIO | F10: ENC. | G10: CUSTO | H10: R. EMP. | I10: DESP. | J10: SALÁRIO | K10: HORA | L10: SALÁRIO | M10: SALÁRIO
A11: PROFISSÃO/FUNÇÃO | C11: S | D11: QTD | E11: CATEG. | F11: SOCIAIS | G11: ADM. | H11: LUCRO | I11: FISCAIS | J11: MENSAL | K11: TÉCNICA | L11: B1 | M11: B2
A13: NÍVEL SUPERIOR
A14: Eng. Coordenador (10 anos experiência) | C14: P8061 | D14: 12 | E14: 17146.8 | F14: 14660.32 | G14: =TRUNC(E14*('FSUP-V Det. custos Adm.'!$F$38/100),2) -> 2572.02 | H14: =TRUNC(0.1*(E14+F14+G14),2) -> 3437.91 | I14: =TRUNC('FSUP-VI Det. Desp Fiscais'!$G$29/100*(E14+F14+G14+H14),2) -> 6285.19 | J14: =SUM(E14:I14) -> 44102.24 | K14: =TRUNC(J14/176,2) -> 250.58 | L14: =TRUNC(D14*E14,2) -> 205761.6
A15: Eng. Ambiental/Agrícola/Agônomo/Agrimensor/Civil/Geólogo | C15: P8058 | D15: 12 | E15: 12236.4 | G15: =TRUNC(E15*('FSUP-V Det. custos Adm.'!$F$38/100),2) -> 1835.46 | H15: =TRUNC(0.1*(E15+F15+G15),2) -> 1407.18 | I15: =TRUNC('FSUP-VI Det. Desp Fiscais'!$G$29/100*(E15+F15+G15+H15),2) -> 2572.61 | J15: =SUM(E15:I15) -> 18051.65 | K15: =TRUNC(J15/176,2) -> 102.56 | M15: =TRUNC(D15*E15,2) -> 146836.8
A16: (*) Profissional com atuação por demanda
A21: NÍVEL TÉCNICO
A22: Técnico de Campo (05 anos de experiencia) | C22: P8147 | D22: 24 | E22: 3115.2 | F22: 3557.03 | G22: =TRUNC(E22*('FSUP-V Det. custos Adm.'!$F$38/100),2) -> 467.28 | H22: =TRUNC(0.1*(E22+F22+G22),2) -> 713.95 | I22: =TRUNC('FSUP-VI Det. Desp Fiscais'!$G$29/100*(E22+F22+G22+H22),2) -> 1305.24 | J22: =SUM(E22:I22) -> 9158.7 | K22: =TRUNC(J22/176,2) -> 52.03 | L22: =TRUNC(D22*E22,2) -> 74764.8
A23: Topógrafo | C23: P8163 | D23: 12 | E23: 2244 | F23: 2911.69 | G23: =TRUNC(E23*('FSUP-V Det. custos Adm.'!$F$38/100),2) -> 336.6 | H23: =TRUNC(0.1*(E23+F23+G23),2) -> 549.22 | I23: =TRUNC('FSUP-VI Det. Desp Fiscais'!$G$29/100*(E23+F23+G23+H23),2) -> 1004.09 | J23: =SUM(E23:I23) -> 7045.6 | K23: =TRUNC(J23/176,2) -> 40.03 | L23: =TRUNC(D23*E23,2) -> 26928
A24: Laboratorista | C24: P8098 | D24: 12 | E24: 2098.8 | F24: 2802.25 | G24: =TRUNC(E24*('FSUP-V Det. custos Adm.'!$F$38/100),2) -> 314.82 | H24: =TRUNC(0.1*(E24+F24+G24),2) -> 521.58 | I24: =TRUNC('FSUP-VI Det. Desp Fiscais'!$G$29/100*(E24+F24+G24+H24),2) -> 953.56 | J24: =SUM(E24:I24) -> 6691.01 | K24: =TRUNC(J24/176,2) -> 38.01 | L24: =TRUNC(D24*E24,2) -> 25185.6
A25: Cadista | C25: P8155 | D25: 12 | E25: 2468.4 | G25: =TRUNC(E25*('FSUP-V Det. custos Adm.'!$F$38/100),2) -> 370.26 | H25: 283.86 | I25: =TRUNC('FSUP-VI Det. Desp Fiscais'!$G$29/100*(E25+F25+G25+H25),2) -> 518.96 | J25: 3641.48 | K25: 20.69 | M25: =TRUNC(D25*E25,2) -> 29620.8
A35: NÍVEL AUXILIAR
A36: Auxiliar Topografia | C36: P8028 | D36: 24 | E36: 1425.6 | F36: 2309.12 | G36: =TRUNC(E36*('FSUP-V Det. custos Adm.'!$F$38/100),2) -> 213.84 | H36: =TRUNC(0.1*(E36+F36+G36),2) -> 394.85 | I36: =TRUNC('FSUP-VI Det. Desp Fiscais'!$G$29/100*(E36+F36+G36+H36),2) -> 721.87 | J36: =SUM(E36:I36) -> 5065.28 | K36: =TRUNC(J36/176,2) -> 28.78 | L36: =TRUNC(D36*E36,2) -> 34214.4
A37: Auxiliar Administrativo | C37: P8026 | D37: 12 | E37: 1702.8 | F37: 2477.16 | G37: =TRUNC(E37*('FSUP-V Det. custos Adm.'!$F$38/100),2) -> 255.42 | H37: =TRUNC(0.1*(E37+F37+G37),2) -> 443.53 | I37: =TRUNC('FSUP-VI Det. Desp Fiscais'!$G$29/100*(E37+F37+G37+H37),2) -> 810.87 | J37: =SUM(E37:I37) -> 5689.78 | K37: =TRUNC(J37/176,2) -> 32.32 | L37: =TRUNC(D37*E37,2) -> 20433.6
A39: APOIO
A42: TOTAIS DOS SALÁRIOS DA EQUIPE | L42: =ROUND(SUM(L13:L41),2) -> 387288 | M42: =SUM(M13:M41) -> 176457.6
A43: NOME DO INFORMANTE: | H43: QUALIFICAÇÃO:
A45: ASSINATURA: | L45: DATA:
A47: OBSERVAÇÃO:
A48: 1 - UTILIZAR OS PARÂMETROS DE CLASSIFICAÇÃO INDICADOS NO TSUP- II EQUIPE TÉCNICA
A49: 2- UTILIZAR OS SÍMBOLOS INDICADOS NO TSUP-II EQUIPE TÉCNICA
A50: 3- INDICAR A QUANTIDADE DE HOMENS POR CATEGORIA.
A51: 4- INIDCAR O SALÁRIO BASE DA CATEGORIA
A52: =CONCATENATE("5 - ENC. SOCIAIS, APLICAR NO MÁXIMO 20% PARA AUTÔNOMOS E % VARIÁVEL PARA EMPREG. COM VÍNCULO DETALHAR NO FSUP-VII") -> 5 - ENC. SOCIAIS, APLICAR NO MÁXIMO 20% PARA AUTÔNOMOS E % VARIÁVEL PARA EMPREG. COM VÍNCULO DETALHAR NO FSUP-VII
A53: 6- CUSTO DE ADMINISTRAÇÃO, APLICAR NO MÁXIMO 25% SOBRE O SALÁRIO BASE DA CATEGORIA
A54: 7 - REMUN. DA EMPRESA (LUCRO), APLICAR NO MÁXIMO 10% SOBRE O SALÁRIO DA CATEG + ENCARGOS SOCIAIS + CUSTO DE ADM.
A55: 8 - DESP. FISCAIS, APLICAR O DF' CALCULADO NO FSUP-VI SOBRE O SALÁRIO DA CATEG. + ENC. SOCIAIS + CUSTO DE ADM. + LUCRO
A56: 9- PREÇO DO HOMEM MÊS POR CATEGORIA = SOMATÓRIO DOS ITENS (4) + (5) + (6) + (7) +(8)
A57: 10- PREÇO DA HORA TÉCNICA = (9) / 176
A58: 11 - SALÁRIOS DE B1 = SALARIO DOS EMPREGADOS COM VÍNCULO X QTD HOMEM MÊS. EXPORTAR O TOTAL PARA LINHA B1 DO FSUP
A59: 12 - SALÁRIO DE B2 = SALÁRIO DO AUTÔNOMO X QTD HOMEM X MÊS. EXPORTAR O TOTAL PARA A LINHA B2 DO FSUP

Sheet FSUP-II VIAGENS
A3: VIAGENS DA EQUIPE TÉCNICA | N3: CODIGO:
N4: FSUP-II
A5: NOME DA CONSULTORA:
A7: PROJETO: | C7: OBJETO:
A8: Obras Viárias | C8: Apoio à Fiscalização
A9: SIMBOLO | B9: ROTEIRO (ida e volta) | E9: PEDÁGIO | L9: DIÁRIAS
E10: A/T | F10: QTD | G10: CUSTO | I10: PREÇO | K10: QTD | L10: CUSTO | N10: PREÇO
G11: UNITÁRIO | H11: TOTAL | I11: UNITÁRIO | J11: TOTAL | L11: UNITÁRIO | M11: TOTAL | N11: UNITÁRIO | O11: TOTAL
B12: Diárias coordenador | K12: 96 | L12: 268 | M12: =TRUNC((K12*L12),2) -> 25728 | N12: =TRUNC((L12*(1+0.1)*(1+(16.62/100))),2) -> 343.79 | O12: =TRUNC((K12*N12),2) -> 33003.84
B13: Diárias técnicos | K13: 384 | L13: 268 | M13: =TRUNC((K13*L13),2) -> 102912 | N13: =TRUNC((L13*(1+0.1)*(1+(16.62/100))),2) -> 343.79 | O13: =TRUNC((K13*N13),2) -> 132015.36
B14: Diárias equipe topografia | K14: 432 | L14: 268 | M14: 115776 | N14: 343.79 | O14: 148517.28
B15: Diária | K15: 96 | L15: 268 | M15: 25728 | N15: 343.79 | O15: 33003.84
B16: Diárias profissionais sem veículo | K16: 96 | L16: 268 | M16: 25728 | N16: =TRUNC((L16*(1+0.1)*(1+(16.62/100))),2) -> 343.79 | O16: 33003.84
A18: Pedágio | B18: Engenheiro Coordenador | F18: 192 | G18: 9.85 | H18: =TRUNC((F18*G18),2) -> 1891.2 | I18: =TRUNC((G18*(1+0.1)*(1+(16.62/100))),2) -> 12.63 | J18: =TRUNC((F18*I18),2) -> 2424.96
A19: Pedágio | B19: Técnico de Campo 01 | F19: 768 | G19: 9.85 | H19: 7564.8 | I19: =TRUNC((G19*(1+0.1)*(1+(16.62/100))),2) -> 12.63 | J19: 9699.84
A20: Pedágio | B20: Técnico de Campo 02 | F20: 768 | G20: 9.85 | H20: 7564.8 | I20: 12.63 | J20: 9699.84
A21: Pedágio | B21: Equipe Topografia | F21: 768 | G21: 9.85 | H21: 7564.8 | I21: 12.63 | J21: 9699.84
A22: Pedágio | B22: Engenheiros | F22: 192 | G22: 9.85 | H22: 1891.2 | I22: 12.63 | J22: 2424.96
A32: TOTAIS DE CUSTOS E DE PREÇOS DE PASSAGENS E DIÁRIAS | H32: =SUM(H12:H31) -> 26476.8 | J32: =SUM(J12:J31) -> 33949.44 | M32: =SUM(M12:M31) -> 295872 | O32: =SUM(O12:O31) -> 379544.16
A33: NOME DO INFORMANTE: | G33: QUALIFICAÇÃO:
A35: ASSINATURA: | M35: DATA:
A37: OBSERVAÇÕES:
A38: 1 - VIAGENS DURANTE A EXECUÇÃO DOS SERVIÇOS
A39: 2 - NÂO INCLUIR VIAGENS COM MOBILIZAÇÃO/DESMOBILIZAÇÃO DA EQUIPE QUE SERÃO CALCULADOS NO PSUP-IV
A40: 3 - AS DIÁRIAS COBREM DESPESAS COM ALIMENTAÇÃO E HOSPEDAGEM
A41: 4 - INDICAR (A) PARA AS PASSAGENS AÉREAS E (T) PARA AS TERRESTRES
A42: 5 - CUSTO DO ITEM SEM LUCRO E SEM DESPESAS FISCAIS
A43: 6 - EXPORTAR O TOTAL DO CUSTO COM PASSAGENS E DIÁRIAS, RESPECTIVAMENTE, LINHAS "D1" E "D2" DO PSUP
A44: =CONCATENATE(";6 - PREÇO = CUSTO + LUCRO+ DESPESAS FISCAIS E SERÁ CALCULADO COM A SEGUINTE FORMULA:CUSTO*(1+0,1)*(1+",'FSUP-VI Det. Desp Fiscais'!G29,"%)") -> ;6 - PREÇO = CUSTO + LUCRO+ DESPESAS FISCAIS E SERÁ CALCULADO COM A SEGUINTE FORMULA:CUSTO*(1+0,1)*(1+16,62%)
A45: 7 - OS PREÇOS UNITÁRIOS SERÃO UTILIZADOS PARA FINS DE FATURARAMENTO
A46: 8 - PEDÁGIO COTADO COMO VALOR MÉDIO ENTRE AS PRAÇAS

Sheet FSUP-III Manutenção Operac
A3: MANUTENÇÃO OPERACIONAL | J3: CODIGO:
J4: FSUP-III
A5: NOME DA CONSULTORA:
A7: PROJETO: | C7: OBJETO: | J7: EDITAL:
A8: Obras Viárias | C8: Apoio à Fiscalização
A9: DISCRIMINAÇÃO | F9: UND | G9: QTD | H9: CUSTOS 2 | J9: PREÇOS 3
H10: UNT | I10: TOTAL | J10: UNT | K10: TOTAL
A11: 1 VEÍCULOS
A12: E8889 - Veículo Sedã Coordenador | F12: mês | G12: 12 | H12: =(30.72*66)+(6.33*116.49) -> 2764.9017 | I12: =TRUNC((G12*H12),2) -> 33178.82 | J12: =TRUNC((1+0.1)*(1+'FSUP-VI Det. Desp Fiscais'!$G$29/100)*H12,2) -> 3546.87 | K12: =TRUNC(G12*J12,2) -> 42562.44
A13: E8889 - Veículo Sedã Técnicos | F13: mês | G13: 24 | H13: =(30.72*66)+(6.33*116.49) -> 2764.9017 | I13: =TRUNC((G13*H13),2) -> 66357.64 | J13: =TRUNC((1+0.1)*(1+'FSUP-VI Det. Desp Fiscais'!$G$29/100)*H13,2) -> 3546.87 | K13: =TRUNC(G13*J13,2) -> 85124.88
A14: 10202 - Pick up cabine dupla (Equipe de topografia) | F14: mês | G14: 12 | H14: 9663.35 | I14: =TRUNC((G14*H14),2) -> 115960.2 | J14: =TRUNC((1+0.1)*(1+'FSUP-VI Det. Desp Fiscais'!$G$29/100)*H14,2) -> 12396.33 | K14: =TRUNC(G14*J14,2) -> 148755.96
A15: Total dos custos e dos preços dos veículos | I15: =SUM(I12:I14) -> 215496.66 | K15: =SUM(K12:K14) -> 276443.28
A17: 2 MANUTENÇÃO E ADMINISTRAÇÃO DO ESCRITÓRIO
A18: Aluguel Escritório - DNIT B8951 (30,00 m²) | F18: mês | G18: 12 | H18: =ROUND((2.6/100)*30*1688.83,2) -> 1317.29 | I18: =TRUNC(G18*H18,2) -> 15807.48 | J18: =TRUNC((1+0.1)*(1+'FSUP-VI Det. Desp Fiscais'!$G$29/100)*H18,2) -> 1689.84 | K18: =TRUNC(G18*J18,2) -> 20278.08
A19: Mobiliário Escritório - DNIT B8953 | F19: mês | G19: 12 | H19: 505.99 | I19: =TRUNC(G19*H19,2) -> 6071.88 | J19: =TRUNC((1+0.1)*(1+'FSUP-VI Det. Desp Fiscais'!$G$29/100)*H19,2) -> 649.09 | K19: =TRUNC(G19*J19,2) -> 7789.08
A20: Água/Energia/Telefone/Internet - DNIT B8959 | F20: mês | G20: 12 | H20: 129 | I20: 1548 | J20: =TRUNC((1+0.1)*(1+'FSUP-VI Det. Desp Fiscais'!$G$29/100)*H20,2) -> 165.48 | K20: 1985.76
I21: 0 | J21: =TRUNC((1+0.1)*(1+'FSUP-VI Det. Desp Fiscais'!$G$29/100)*H21,2) -> 0 | K21: 0
I22: 0 | J22: =TRUNC((1+0.1)*(1+'FSUP-VI Det. Desp Fiscais'!$G$29/100)*H22,2) -> 0 | K22: 0
I23: 0 | J23: =TRUNC((1+0.1)*(1+'FSUP-VI Det. Desp Fiscais'!$G$29/100)*H23,2) -> 0 | K23: 0
I24: 0 | J24: =TRUNC((1+0.1)*(1+'FSUP-VI Det. Desp Fiscais'!$G$29/100)*H24,2) -> 0 | K24: 0
I25: 0 | J25: =TRUNC((1+0.1)*(1+'FSUP-VI Det. Desp Fiscais'!$G$29/100)*H25,2) -> 0 | K25: 0
I26: =SUM(I18:I25) -> 23427.36 | K26: =SUM(K18:K25) -> 30052.92
A27: 3 EQUIPAMENTOS
A29: B8958 - Equipamento topografia (1) | F29: mês | G29: 12 | H29: 2967.32 | I29: =TRUNC(G29*H29,2) -> 35607.84 | J29: =TRUNC((1+0.1)*(1+'FSUP-VI Det. Desp Fiscais'!$G$29/100)*H29,2) -> 3806.53 | K29: =TRUNC(G29*J29,2) -> 45678.36
A30: Microcomputador completo | F30: mês | G30: 48 | H30: 60.97 | I30: =TRUNC(G30*H30,2) -> 2926.56 | J30: =TRUNC((1+0.1)*(1+'FSUP-VI Det. Desp Fiscais'!$G$29/100)*H30,2) -> 78.21 | K30: =TRUNC(G30*J30,2) -> 3754.08
A31: Impressora | F31: mês | G31: 12 | H31: 77.75 | I31: 933 | J31: =TRUNC((1+0.1)*(1+'FSUP-VI Det. Desp Fiscais'!$G$29/100)*H31,2) -> 99.73 | K31: 1196.76
A33: (1) Conforme Tabela 6 - Cesta de instalações de topografia (B8958) do volume Cestas de mobiliário, de instalações e de custos diversos da Tabela de Consultoria
I34: =SUM(I28:I33) -> 39467.4 | K34: =SUM(K28:K33) -> 50629.2
A35: 4 SERVIÇOS GRÁFICOS
A36: Relatório 100 folhas A3 | F36: unid. | G36: 12 | H36: 35 | I36: =TRUNC(G36*H36,2) -> 420 | J36: =TRUNC((1+0.1)*(1+'FSUP-VI Det. Desp Fiscais'!$G$29/100)*H36,2) -> 44.89 | K36: =TRUNC(G36*J36,2) -> 538.68
A37: Impressão A0/A1 | F37: unid. | G37: 24 | H37: 10 | I37: =TRUNC(G37*H37,2) -> 240 | J37: =TRUNC((1+0.1)*(1+'FSUP-VI Det. Desp Fiscais'!$G$29/100)*H37,2) -> 12.82 | K37: =TRUNC(G37*J37,2) -> 307.68
A41: Total dos custos e dos preços dos serv. gráficos/computação | I41: =SUM(I36:I40) -> 660 | K41: =SUM(K36:K40) -> 846.36
A42: 5 ENSAIOS
A43: Corpo de prova | E43: 060487 Goinfra Civil | F43: unid. | G43: 36 | H43: 14.09 | I43: =TRUNC(G43*H43,2) -> 507.24 | J43: =TRUNC((1+0.1)*(1+'FSUP-VI Det. Desp Fiscais'!$G$29/100)*H43,2) -> 18.07 | K43: =TRUNC(G43*J43,2) -> 650.52
A44: Ensaio de Indíce de suporte Califórnia | E44: 11449 DER-ES | F44: unid. | G44: 10 | H44: 196.25 | I44: =TRUNC(G44*H44,2) -> 1962.5 | J44: =TRUNC((1+0.1)*(1+'FSUP-VI Det. Desp Fiscais'!$G$29/100)*H44,2) -> 251.75 | K44: =TRUNC(G44*J44,2) -> 2517.5
A45: Ensaio de Limites de Liquidez e Plasticidade - por amostra | E45: 11451 DER-ES | F45: unid. | G45: 10 | H45: 171.46 | I45: =TRUNC(G45*H45,2) -> 1714.6 | J45: =TRUNC((1+0.1)*(1+'FSUP-VI Det. Desp Fiscais'!$G$29/100)*H45,2) -> 219.95 | K45: =TRUNC(G45*J45,2) -> 2199.5
A46: Ensaio de Estabilidade de Concreto Asfáltico | E46: 101973 DER-ES | F46: unid. | G46: 10 | H46: 459.63 | I46: 4596.3 | J46: =TRUNC((1+0.1)*(1+'FSUP-VI Det. Desp Fiscais'!$G$29/100)*H46,2) -> 589.62 | K46: 5896.2
A47: Ensaio de Equivalente de Areia - por amostra | E47: 11445 DER-ES | F47: unid. | G47: 10 | H47: 206.57 | I47: 2065.7 | J47: =TRUNC((1+0.1)*(1+'FSUP-VI Det. Desp Fiscais'!$G$29/100)*H47,2) -> 264.99 | K47: 2649.9
A48: Total dos custos e dos preços dos serv. gráficos/computação | I48: =SUM(I43:I47) -> 10846.34 | K48: =SUM(K43:K47) -> 13913.62
A50: NOME DO INFORMANTE: | G50: QUALIFICAÇÃO:
A52: ASSINATURA: | H52: DATA:
A54: OBSERVAÇÃO:
A55: 1. Aluguel de veículos inclui combustível e manutenção até o limite de 3000km/mês
A56: 2. Custo do item sem lucro e despesas fiscais
A57: =CONCATENATE("3. Preço = custo + lucro + despesas fiscais. Para calcular o preço aplica-se a seguinte fórmula: custo*(1+0,1)*(1+",'FSUP-VI Det. Desp Fiscais'!G29,"%)") -> 3. Preço = custo + lucro + despesas fiscais. Para calcular o preço aplica-se a seguinte fórmula: custo*(1+0,1)*(1+16,62%)
A58: 4. Exportar " total custo" para a linha corresponde no FSUP. Os preços serão aplicados para fins de faturamento

Sheet FSUP-IV Mobiliz Desmob
A3: MOBILIZAÇÃO E DESMOBILIZAÇÃO | M3: CODIGO:
M4: FSUP-IV
A5: NOME DA CONSULTORA:
A7: PROJETO: | C7: OBJETO: | M7: EDITAL:
A8: Obras Viárias | C8: Apoio à Fiscalização
A9: DISCRIMINAÇÃO | D9: SÍMB. | E9: UNID | F9: QTD. | G9: MOBILIZAÇÃO | K9: DESMOBILIZAÇÃO
G10: CUSTO | I10: PREÇO | K10: CUSTO | M10: PREÇO
G11: UNITÁRIO | H11: TOTAL | I11: UNITÁRIO | J11: TOTAL | K11: UNITÁRIO | L11: TOTAL | M11: UNITÁRIO | N11: TOTAL
N14: =ROUND(F14*M14,2) -> 0
A41: TOTAIS DE CUSTOS E DE PREÇOS DE MOBILIZAÇÃO/DESMOBILIZAÇÃO | H41: =SUM(H12:H40) -> 0 | J41: =SUM(J12:J40) -> 0 | L41: =SUM(L12:L40) -> 0 | N41: =SUM(N12:N40) -> 0
A42: NOME DO INFORMANTE: | G42: QUALIFICAÇÃO:
A44: ASSINATURA: | L44: DATA:
A46: OBS: 1 - Custo do item sem lucro e sem despesas fiscais. Os totais detes deverão ser exportados para o item correspondente no FSUP
A47: 2 - Preço = custo + lucro + despesas fiscais e será calculado com a seguinte fórmula: custo*(1+0,1)*(1+0,1396). O preço será utilizado para fins de faturamento

Sheet FSUP-V Det. custos Adm.
A3: DETALHAMENTO DOS CUSTOS DE ADMINISTRAÇÃO | G3: CODIGO:
G4: FSUP-V
A5: NOME DA CONSULTORA:
A7: PROJETO: | C7: OBJETO: | G7: EDITAL:
A8: Obras Viárias | C8: Apoio à Fiscalização
A9: SEQ. | B9: DISCRIMINAÇÃO | F9: VALORES
F10: % | G10: R$
A11: 1 | B11: Custos da equipe da administração central da empresa consultora(diretoria, pessoal técnico de apoio e pessoal administrativo não diretamente vinculado à prestação dos serviços) | F11: 10 | G11: =ROUND(F11/$F$38*FSUP!N$34,2) -> 56374.56
A12: 2 | B12: Outras despesas que afetam o custo de produção como treinamento, biblioteca, programa de qualidade, auditoria interna e externa | F12: 3 | G12: =ROUND(F12/$F$38*FSUP!N$34,2) -> 16912.37
A13: 3 | B13: Despesas com aluguéis, comunicação, manutenção e transporte não diretamente relacionados com o custo direto dos serviços | F13: 2 | G13: =ROUND(F13/$F$38*FSUP!N$34,2) -> 11274.91
B38: TOTAIS DO CUSTO DE ADMINISTRAÇÃO | F38: =SUM(F11:F22) -> 15 | G38: =SUM(G11:G37) -> 84561.84
A40: NOME DO INFORMANTE: | D40: QUALIFICAÇÃO:
A41: ASSINATURA: | F41: DATA:
A42: OBSERVAÇAO:
A43: 1 - RELACIONAR OS CUSTOS DE ADMINISTRAÇÃO COM RESPECTIVOS PERCENTUAIS INCIDENTES NA MÃO -DE-OBRA DOS
A44: SERVIÇOS

Sheet FSUP-VI Det. Desp Fiscais
A3: DETALHAMENTO DAS DESPESAS FISCAIS | H3: CODIGO:
H4: FSUP-VI
A5: NOME DA CONSULTORA:
A7: PROJETO: | C7: OBJETO: | H7: EDITAL:
A8: Obras Viárias | C8: Apoio à Fiscalização
A9: DISCRIMINAÇÃO 1 | F9: VALORES
F10: DF (%) 2 | G10: DF' (%) 3 | H10: R$
A12: 1 - ISS | F12: 5 | G12: =(1/(1-$F$29/100))*F12 -> 5.83090379 | H12: =ROUND(G12/G$29*FSUP!N$36,2) -> 109733.83
A13: 2 - PIS | F13: 1.65 | G13: =(1/(1-$F$29/100))*F13 -> 1.924198251 | H13: =ROUND(G13/G$29*FSUP!N$36,2) -> 36212.16
A14: 3 - COFINS | F14: 7.6 | G14: =(1/(1-$F$29/100))*F14 -> 8.862973761 | H14: =ROUND(G14/G$29*FSUP!N$36,2) -> 166795.42
A15: 4 - CPRB | G15: =(1/(1-$F$29/100))*F15 -> 0 | H15: =ROUND(G15/G$29*FSUP!N$36,2) -> 0
A29: TOTAIS DE DESPESAS FISCAIS | F29: =SUM(F12:F28) -> 14.25 | G29: =ROUND(SUM(G12:G28),2) -> 16.62 | H29: =SUM(H12:H28) -> 312741.41
A30: NOME DO INFORMANTE: | F30: QUALIFICAÇÃO:
A32: ASSINATURA: | G32: DATA:
A34: Observação:
A35: 1 - DISCRIMINAR OS TRIBUTOS QUE INCIDEM SOBRE OS CUSTOS DA PRESTAÇÃO DOS SERVIÇOS
A36: =CONCATENATE("2 - DF = INDICAR OS % DE CADA TRIBUTO E A SOMA DOS MESMOS (ISS ",F12,"% + PIS 1,65% + COFINS 7,60% = ",F29,"%). ") -> 2 - DF = INDICAR OS % DE CADA TRIBUTO E A SOMA DOS MESMOS (ISS 5% + PIS 1,65% + COFINS 7,60% = 14,25%).
A37: OBS.: foi adotada a alíquota de 5% de ISS praticada em Goiânia para obras e serviços de engenharia.
A39: 3 - AS DESPESAS FISCAIS (DF) INCIDEM SOBRE O TOTAL DA FATURA E NÃO SOBRE OS CUSTOS INCORRIDOS,
A40: DEVENDO SER CALCULADO O DF' APLICANDO-SE A SEGUINTE FÓRMULA:
A41: DF' = { [ 1 / ( 1 - DF) ] - 1 } x 100
A42: =CONCATENATE("DF' = { [ 1 / ( 1 - (",F29,"%) ] - 1 } x 100)") -> DF' = { [ 1 / ( 1 - (14,25%) ] - 1 } x 100)
A43: =CONCATENATE("DF' = (",G29,"% . APLICAR O % ENCONTRADO NA LINHA H DO FSUP PARA CALCULAR AS DESPESAS FISCAIS)") -> DF' = (16,62% . APLICAR O % ENCONTRADO NA LINHA H DO FSUP PARA CALCULAR AS DESPESAS FISCAIS)
A44: O TOTAL CALCULADO NA LINHA "H" DO PFSUP SERÁ IMPORTADO PARA COMPOR ESTE DETALHAMENTO.

Sheet FSUP-VII Det. Enc. Sociais
A3: DETALHAMENTO DOS ENCARGOS SOCIAIS | G3: CODIGO:
G4: FSUP-VII
A5: NOME DA CONSULTORA:
A7: PROJETO: | C7: OBJETO: | G7: EDITAL:
A8: Obras Viárias | C8: Apoio à Fiscalização
A9: CÓD | B9: DISCRIMINAÇÃO | D9: ENCARGOS (R$) | F9: QUANTIDADE | G9: ENCARGOS TOTAIS (R$)
A12: P8061 | B12: Eng. Coordenador (10 anos experiência) | D12: 14660.32 | F12: 12 | G12: =ROUND(D12*F12,2) -> 175923.84
A13: P8058 | B13: Eng. Ambiental/Agrícola/Agônomo/Agrimensor/Civil
A15: P8147 | B15: Técnico de Campo (05 anos de experiencia) | D15: 3557.03 | F15: 24 | G15: =ROUND(D15*F15,2) -> 85368.72
A16: P8163 | B16: Topógrafo | D16: 2911.69 | F16: 12 | G16: 34940.28
A17: P8098 | B17: Laboratorista | D17: 2802.25 | F17: 12 | G17: 33627
A18: P8155 | B18: Cadista
A20: P8028 | B20: Auxiliar topografia | D20: 2309.12 | F20: 24 | G20: =ROUND(D20*F20,2) -> 55418.88
A21: P8026 | B21: Auxiliar Adminstrativa | D21: 2477.16 | F21: 12 | G21: 29725.92
A24: TOTAIS DE ENCARGOS SOCIAIS | G24: =ROUND(SUM(G12:G21),2) -> 415004.64
A25: NOME DO INFORMANTE: | D25: QUALIFICAÇÃO:
A27: ASSINATURA: | F27: DATA:
A29: Observação:
A30: 1 - DISCRIMINAR OS ENCARGOS SOCIAIS COM SEUS RESPECTIVOS PERCENTUAS TOTALIZANDO OS MESMOS.
A31: 2 - O % TOTAL SERÁ APLICADO PARA CÁLCULAR OS E. SOCIAIS INCIDENTES NA MÃO-DE-OBRA COM VÍNCULO, LINHA "B1" DO FSUP
B66: =B48=B57 -> TRUE | C66: TRUE | D66: TRUE
